[Event "Chinese League Div-A Rapid 2022"]
[Site "Fuling,Chongqing"]
[Date "2022.09.19"]
[Round "11.2"]
[White "Xu, Yi"]
[Black "Bu, Xiangzhi"]
[Result "1/2-1/2"]
[ECO "B31"]
[WhiteElo "2507"]
[BlackElo "2709"]
[Annotator "TA"]
[PlyCount "41"]
[EventDate "2022.09.07"]
[EventType "team-tourn"]
[EventCountry "CHN"]
[SourceTitle "playchess.com"]
[Source "ChessBase"]
[SourceQuality "1"]
[TimeControl "1500+10"]

{[%evp 17,41,4,0,0,21,17,15,17,27,12,12,12,16,23,44,34,50,51,51,37,53,46,51,53,61,69]} 1. e4 {[%emt 0:00:01]} c5 {[%emt 0:00:01]} 2. Nf3 {[%emt 0:00:02]} Nc6 {[%emt 0:00:02]} 3. Bb5 {[%emt 0:00:02]} g6 {[%emt 0:00:01]} 4. O-O {[%emt 0:00:02]} Bg7 {[%emt 0:00:01]} 5. c3 {[%emt 0:00:02]} Nf6 {[%emt 0:00:01]} 6. Re1 {[%emt 0:00:05]} O-O {[%emt 0:00:02]} 7. d4 {[%emt 0:00:09]} d5 {[%emt 0:00:02]} 8. e5 {[%emt 0:00:03]} Ne4 {[%emt 0:00:01]} 9. Bxc6 {[%emt 0:00:02]} bxc6 {[%emt 0:00:02]} 10. Be3 $1 {[%emt 0:00:03][%mdl 4] now scores much better than the old 10.Nbd2. B31: Sicilian: 2...Nc6 3 Bb5 g6.} Rb8 {[%emt 0:01:14]} 11. Qc1 {[%emt 0:01:01]} cxd4 {[%emt 0:01:54]} 12. cxd4 {[%emt 0:00:11] The position is equal.} f6 {[%emt 0:00:05]} 13. exf6 {[%emt 0:00:27]} exf6 {[%emt 0:00:04]} 14. Nbd2 {[%emt 0:01:01] [#]} Re8 $146 {[%emt 0:02:16]} ({Predecessor:} 14... Bf5 15. Qxc6 Rxb2 16. Nb3 Ng5 17. Nxg5 fxg5 18. Rec1 Qf6 19. Qxd5+ Qe6 20. Qxe6+ Bxe6 {½-½ (43) Perez Gormaz,M (2413)-Kotronias,V (2517) Banja Vrujci 2021}) 15. Qxc6 {[%emt 0:01:44]} Bf5 {[%emt 0:02:07]} (15... Rxb2 {looks sharper.} 16. Nb3 Bf8 17. Nfd2 Nxd2 18. Bxd2 Rxe1+ 19. Rxe1 Qd7) 16. Nb3 {[%emt 0:01:16] White is slightly better.} Qd7 {[%emt 0:00:07]} 17. Qxd7 {[%emt 0:02:52]} Bxd7 {[%emt 0:00:01]} 18. Nfd2 {[%emt 0:00:06]} f5 {[%emt 0:01:26]} 19. f3 {[%emt 0:00:37]} Nxd2 {[%emt 0:00:04]} 20. Bxd2 {[%emt 0:00:04]} Rxe1+ {[%emt 0:03:30]} 21. Rxe1 {[%emt 0:00:23] Weighted Error Value: White=0.02 (flawless) /Black=0.09 (flawless)} 1/2-1/2

[Event "Chinese League Div-A Rapid 2022"]
[Site "Fuling,Chongqing"]
[Date "2022.09.19"]
[Round "11.3"]
[White "Lou, Yiping"]
[Black "Zeng, Chongsheng"]
[Result "0-1"]
[ECO "D45"]
[WhiteElo "2485"]
[BlackElo "2597"]
[Annotator "TA"]
[PlyCount "120"]
[EventDate "2022.09.07"]
[EventType "team-tourn"]
[EventCountry "CHN"]
[SourceTitle "playchess.com"]
[Source "ChessBase"]
[SourceQuality "1"]
[TimeControl "1500+10"]

{[%evp 13,120,16,20,0,3,-3,12,12,10,0,4,-16,0,0,6,0,0,0,7,7,27,0,25,16,27,14,61,51,48,51,68,56,62,35,70,19,15,0,0,0,0,0,0,0,0,0,0,-40,0,0,0,-1,0,0,0,0,0,-21,0,0,0,0,0,0,0,0,0,0,0,0,0,0,0,-712,-711,-702,-635,-622,0,-713,-693,-858,-583,-793,-608,-601,0,0,0,-676,-676,-641,-576,-540,-528,-389,-389,-389,-389,-4775,-4775,-29954,-29955,-12838,-5723,-5061,-4862,-4766,-2370]} 1. Nf3 {[%emt 0:00:03]} Nf6 {[%emt 0:00:08]} 2. d4 {[%emt 0:00:09]} d5 {[%emt 0:00:11]} 3. c4 {[%emt 0:00:02]} e6 {[%emt 0:00:02]} 4. Nc3 {[%emt 0:00:05]} c6 {[%emt 0:00:01]} 5. e3 {[%emt 0:00:10]} Nbd7 {[%emt 0:00:02]} 6. Qc2 {[%emt 0:00:20]} b6 {[%emt 0:00:16]} 7. Bd3 {[%emt 0:02:21]} Bb7 {[%emt 0:00:02]} 8. cxd5 {[%emt 0:00:21] D45: Semi-Slav: 5 e3.} cxd5 {[%emt 0:00:36]} 9. O-O {[%emt 0:00:19]} Be7 {[%emt 0:01:05]} 10. Bd2 {[%emt 0:01:05] The position is equal.} O-O {[%emt 0:00:11]} 11. Ne5 {[%emt 0:00:24]} Rc8 {[%emt 0:00:18] [#]} 12. Rad1 $146 {[%emt 0:02:15]} ({Predecessor:} 12. f4 Ne4 13. Be1 Nxe5 14. fxe5 Bg5 15. Qe2 f6 16. Nb5 fxe5 17. Rxf8+ Qxf8 18. dxe5 {1-0 (34) Viswanath,S (1967)-Tan,J (2281) Kuala Lumpur 2007}) 12... h6 {[%emt 0:01:18]} 13. f4 {[%emt 0:00:47]} a6 {[%emt 0:00:20]} 14. Be1 $1 {[%emt 0:00:38]} Ne4 {[%emt 0:01:32]} 15. Qe2 $1 {[%emt 0:00:18]} b5 {[%emt 0:00:15]} 16. Qf3 {[%emt 0:00:46][%cal Rc3e4]} f5 {[%emt 0:01:47]} 17. Ne2 {[%emt 0:01:05]} (17. Ng6 $5 {[%cal Rg6f8]}) 17... Nxe5 {[%emt 0:00:48]} 18. fxe5 {[%emt 0:00:56]} g5 {[%emt 0:00:15]} 19. g4 {[%emt 0:01:27]} fxg4 {[%emt 0:04:05]} (19... Qe8 $1 $11 {is more appropriate.}) 20. Qxg4 $14 {[%emt 0:00:02]} Rxf1+ {[%emt 0:00:02]} 21. Kxf1 {[%emt 0:00:01]} Qf8+ $1 {[%emt 0:00:10]} 22. Kg2 {[%emt 0:01:28]} Qf7 {[%emt 0:03:12]} 23. Ng3 $1 {[%emt 0:00:48] Prevents h5.} Nxg3 {[%emt 0:03:47]} 24. hxg3 {[%emt 0:02:20]} (24. Bxg3 $14 h5 25. Qe2) 24... h5 $11 {[%emt 0:00:26]} 25. Qf3 {[%emt 0:00:22]} (25. Qe2 {looks sharper.} g4 26. a3 Rf8 27. Rc1) 25... Qxf3+ {[%emt 0:00:07]} 26. Kxf3 {[%emt 0:00:02]} g4+ {[%emt 0:00:23]} 27. Kg2 {[%emt 0:01:36]} Kg7 {[%emt 0:00:02] Inhibits Bg6.} 28. Bd2 {[%emt 0:04:09]} Bc6 {[%emt 0:00:48]} 29. Rc1 {[%emt 0:00:16]} Bd7 {[%emt 0:00:04]} 30. a4 {[%emt 0:02:04]} Rxc1 {[%emt 0:00:15]} (30... bxa4 $5 {[%cal Rc8b8]} 31. Rxc8 Bxc8 $15) 31. Bxc1 $15 {[%emt 0:00:01][%mdl 4096] Endgame KBB-KBB} Be8 {[%emt 0:01:11]} 32. axb5 {[%emt 0:00:41]} axb5 {[%emt 0:01:23]} 33. e4 {[%emt 0:01:59]} Bc6 {[%emt 0:00:01]} 34. exd5 {[%emt 0:00:01]} Bxd5+ {[%emt 0:00:01]} 35. Kh2 {[%emt 0:00:21]} b4 {[%emt 0:00:07]} (35... Bc4 $5 {[%cal Rc4d3]} 36. Be4 Bb4 $11) 36. Bd2 {[%emt 0:00:22]} b3 {[%emt 0:00:06]} 37. Be2 {[%emt 0:00:37]} Bd8 {[%emt 0:00:15]} 38. Kg1 {[%emt 0:00:17]} Bb6 {[%emt 0:00:43]} 39. Bc3 {[%emt 0:00:01]} Kh6 {[%emt 0:00:01]} 40. Bd2+ {[%emt 0:00:24]} Kg6 {[%emt 0:00:01]} 41. Bd3+ {[%emt 0:00:02]} Kg7 {[%emt 0:00:12]} 42. Bc3 {[%emt 0:00:01]} Bd8 {[%emt 0:00:09] Strongly threatening ...Bg5.} 43. Be2 $2 {[%emt 0:00:38][%mdl 8192] [#]} (43. Bd2 $11) 43... Bg5 $1 $19 {[%emt 0:00:06]} 44. Kf2 {[%emt 0:00:04]} Kh6 {[%emt 0:00:12]} 45. Bb4 {[%emt 0:00:14]} Kg7 $2 {[%emt 0:00:09]} (45... Bc1 $19 46. Bf8+ Kg5) 46. Ba3 $2 {[%emt 0:00:15][%mdl 8192]} (46. Bc3 $11) 46... Bc1 {[%emt 0:00:09]} 47. Bd3 {[%emt 0:00:06]} Kf7 {[%emt 0:00:16][%cal Oh5h4] [#] White must now prevent ...h4!} 48. Bb5 {[%emt 0:00:07]} Bg5 {[%emt 0:00:21]} 49. Be2 {[%emt 0:00:01]} Bd8 $2 {[%emt 0:00:46]} ({Black should play} 49... Bd2 $19 50. Bf1 Bc1) 50. Bb4 $1 $11 {[%emt 0:00:03]} Bg5 {[%emt 0:00:51]} 51. Ba5 $2 {[%emt 0:00:18][%mdl 8192]} (51. Ba3 $11) 51... Bc1 $19 {[%emt 0:00:05]} 52. Bc3 {[%emt 0:00:01]} Kg6 {[%emt 0:01:14]} 53. Bd3+ {[%emt 0:00:03]} Kg5 {[%emt 0:00:22] Hoping for ...h4.} 54. Bb4 {[%emt 0:00:11]} h4 {[%emt 0:00:04]} 55. Be7+ {[%emt 0:00:34]} Kh5 {[%emt 0:00:01]} 56. gxh4 $2 {[%emt 0:00:10]} (56. Bxh4 Bxb2 57. Ke3) 56... Bxb2 {[%emt 0:00:51]} 57. Kg3 {[%emt 0:00:11]} Bxd4 {[%emt 0:00:12]} 58. Bf6 {[%emt 0:00:09]} b2 {[%emt 0:00:17]} (58... Bc3 $142 59. Kf2 b2) 59. Bb1 {[%emt 0:00:01]} Bc3 {[%emt 0:00:15] ( -> ...Be1+)} 60. Kf2 {[%emt 0:00:22] Prevents Be1+.} Bc6 {[%emt 0:00:04] Weighted Error Value: White=0.80/Black=0.38} (60... Bd2 $142 61. Ke2 Bf4) 0-1

[Event "Chinese League Div-A Rapid 2022"]
[Site "Fuling,Chongqing"]
[Date "2022.09.19"]
[Round "11.4"]
[White "Huang, Qian"]
[Black "Ni, Shiqun"]
[Result "1/2-1/2"]
[ECO "A20"]
[WhiteElo "2433"]
[BlackElo "2371"]
[Annotator "RC"]
[PlyCount "51"]
[EventDate "2022.09.07"]
[EventType "team-tourn"]
[EventCountry "CHN"]
[SourceTitle "playchess.com"]
[Source "ChessBase"]
[SourceQuality "1"]
[TimeControl "1500+10"]

1. c4 {[%emt 0:00:03]} e5 {[%emt 0:00:03]} 2. g3 {[%emt 0:00:03]} c6 {[%emt 0:00:01]} 3. d4 {[%emt 0:00:12]} e4 {[%emt 0:00:01]} 4. d5 {[%emt 0:00:02]} Bb4+ {[%emt 0:00:01]} 5. Bd2 {[%emt 0:00:05]} Qe7 {[%emt 0:00:04]} 6. e3 {[%emt 0:00:07]} Bxd2+ {[%emt 0:00:46]} 7. Qxd2 {[%emt 0:00:46]} d6 {[%emt 0:00:03]} 8. Nc3 {[%emt 0:00:18]} c5 {[%emt 0:01:48]} 9. Bg2 {[%emt 0:00:59]} Nf6 {[%emt 0:00:18]} 10. h3 {[%emt 0:01:12]} h5 {[%emt 0:00:07]} 11. Nge2 {[%emt 0:01:42]} Bf5 {[%emt 0:00:06]} 12. O-O-O {[%emt 0:00:41]} Nbd7 {[%emt 0:03:25]} 13. g4 {[%emt 0:01:04]} hxg4 {[%emt 0:02:52]} 14. hxg4 {[%emt 0:00:02]} Rxh1 {[%emt 0:00:02]} 15. Rxh1 {[%emt 0:00:36]} Bxg4 {[%emt 0:00:04]} 16. Rh8+ {[%emt 0:02:16]} Nf8 {[%emt 0:00:01]} 17. Ng3 {[%emt 0:00:35]} O-O-O {[%emt 0:00:28]} 18. Ncxe4 {[%emt 0:00:18]} Ng6 {[%emt 0:01:22]} 19. Rxd8+ {[%emt 0:02:35]} Qxd8 {[%emt 0:00:01]} 20. f3 {[%emt 0:02:41]} Nxe4 {[%emt 0:00:50]} 21. Nxe4 {[%emt 0:00:02]} Bf5 {[%emt 0:00:03]} 22. Ng3 {[%emt 0:00:02]} Qg5 {[%emt 0:04:30]} 23. Nxf5 {[%emt 0:00:15]} Qxf5 {[%emt 0:00:01]} 24. f4 {[%emt 0:00:04]} Nh4 {[%emt 0:00:21]} 25. Bf1 {[%emt 0:00:13]} g5 {[%emt 0:01:01]} 26. Bd3 {[%emt 0:05:01]} 1/2-1/2

[Event "Chinese League Div-A Rapid 2022"]
[Site "Fuling,Chongqing"]
[Date "2022.09.19"]
[Round "11.5"]
[White "Wang, Chuqiao"]
[Black "Ning, Kaiyu"]
[Result "1-0"]
[ECO "D31"]
[WhiteElo "2037"]
[BlackElo "2374"]
[Annotator "TA"]
[PlyCount "117"]
[EventDate "2022.09.07"]
[EventType "team-tourn"]
[EventCountry "CHN"]
[SourceTitle "playchess.com"]
[Source "ChessBase"]
[SourceQuality "1"]
[TimeControl "1500+10"]

{[%evp 9,117,24,32,25,38,20,20,14,12,4,5,0,0,0,0,0,2,0,0,0,0,-8,-5,-6,0,-19,0,0,0,0,0,0,0,-35,-34,-47,-42,-43,5,3,19,15,32,0,38,35,74,0,81,92,80,0,22,0,56,40,46,29,21,41,103,75,280,269,380,369,362,356,582,333,424,0,572,547,547,553,879,849,849,798,664,664,664,664,660,645,650,566,622,637,637,0,709,739,678,585,587,523,718,718,752,940,897,925,893,895,1014,974,29993,29994]} 1. d4 {[%emt 0:00:02]} d5 {[%emt 0:00:01]} 2. c4 {[%emt 0:00:02]} e6 {[%emt 0:00:01]} 3. Nc3 {[%emt 0:00:02]} a6 {[%emt 0:00:01]} 4. cxd5 {[%emt 0:00:13]} exd5 {[%emt 0:00:02]} 5. Nf3 {[%emt 0:00:04]} h6 {[%emt 0:00:12] CPLX 2.0 8 (Ng8-f6) (=8)} 6. Bf4 {[%emt 0:00:24] BESTDEEP. D31: Queen's Gambit Declined: Semi-Slav without ...Nf6 (+ Marshall Gambit and Noteboom) and Exchange Variation lines without ...Nf6.} Nf6 {[%emt 0:00:02] BESTDEEP} 7. h3 {[%emt 0:00:16] CPLX 2.3 18 (Ra1-c1) (=9)} Bd6 {[%emt 0:00:02] CPLX 2.3 0 (Bc8-f5) (=3)} 8. Bxd6 {[%emt 0:00:14] CPLX 2.7 6 (e2-e3) (=8). The position is equal.} Qxd6 {[%emt 0:00:02] RECAPT} 9. e3 {[%emt 0:00:03] CPLX 2.0 8 (Qd1-c2) (=8)} Bf5 {[%emt 0:00:03] BESTDEEP} 10. Bd3 {[%emt 0:00:04] CPLX 2.4 5 (Nf3-h4) (=7)} Bxd3 {[%emt 0:00:30] CPLX 2.7} 11. Qxd3 {[%emt 0:00:01] RECAPT} O-O {[%emt 0:00:05] BESTDEEP} 12. O-O {[%emt 0:00:10] CPLX 2.0} Nbd7 {[%emt 0:00:02] [#] CPLX 2.1} 13. Rfd1 $146 {[%emt 0:00:36] CPLX 2.1 2 (a2-a4) (=5)} ({Predecessor:} 13. b4 c6 14. Rab1 b5 15. a4 Nb6 16. Ne5 Nfd7 17. a5 Nc4 18. Nxc4 bxc4 19. Qd2 {1-0 (28) Mikhalevski,V (2565)-Grandelius,N (2651) Chess.com INT 2020}) 13... Rfe8 {[%emt 0:00:04] CPLX 2.1} 14. Rac1 {[%emt 0:01:00] CPLX 2.1 0 (Qd3-c2) (=4)} Ne4 {[%emt 0:00:06] CPLX 2.1} 15. Ne2 {[%emt 0:00:27] CPLX 2.9 8 (Nf3-e5) (=5)} c6 {[%emt 0:00:24] CPLX 2.7} 16. Nd2 {[%emt 0:01:29] CPLX 2.7 1 (Qd3-b3) (=4)} f5 {[%emt 0:00:12] CPLX 3.3 6 (Nd7-f6) (=1)} 17. f3 {[%emt 0:01:01] CPLX 3.3 19 (Qd3-b3) (=6)} Nef6 {[%emt 0:00:23] CPLX 3.4 19 (Ne4xd2) (=3)} 18. Nf1 {[%emt 0:00:56] CPLX 2.3 0 (Rc1-c3) (=5)} g6 {[%emt 0:00:09][%cal Bg7g6,Bg6g5][%mdl 32] CPLX 2.1} 19. Nf4 {[%emt 0:01:24] CPLX 2.0 0 (g2-g4) (=5)} Nf8 {[%emt 0:03:44] BESTDEEP} 20. Qc2 {[%emt 0:00:26] CPLX 2.2 0 (Qd3-b3) (=4)} Re7 {[%emt 0:00:47] CPLX 2.3} 21. Qc5 {[%emt 0:01:43] CPLX 2.3 35 (Nf4-d3) (=6)} Qxc5 {[%emt 0:00:21] CPLX 2.7} 22. Rxc5 {[%emt 0:00:20] RECAPT} g5 {[%emt 0:00:10] CPLX 2.0} 23. Nd3 {[%emt 0:00:10] CPLX 2.2} N6d7 {[%emt 0:00:21] CPLX 2.0 48 (Nf8-e6) (=4)} (23... Ne6 $15 {should be considered.} 24. Rcc1 f4) 24. Rc3 $11 {[%emt 0:00:23] CPLX 2.0} Ng6 {[%emt 0:00:12] CPLX 2.0 16 (Nf8-e6) (=5)} (24... Ne6 $5 {[%cal Rf5f4]}) 25. Rb3 {[%emt 0:00:41] CPLX 2.0} Rb8 {[%emt 0:00:14] CPLX 2.0 17 (Nd7-f6) (=5)} 26. Kf2 {[%emt 0:00:28] CPLX 2.0 32 (f3-f4) (=6)} Kf7 {[%emt 0:00:14] MISS-f5-f4 38 (f5-f4) (=7)} 27. Ng3 {[%emt 0:00:25] BESTDEEP} Nh4 {[%emt 0:00:25] CPLX 2.6 39 (Kf7-e6) (=8)} 28. Nf1 {[%emt 0:01:26] CPLX 3.3 74 (f3-f4) (=9)} (28. f4 $16) 28... h5 {[%emt 0:00:30] RELBLUND 81 (Nh4-g6) (=11)} (28... Ng6 $11 {remains equal.}) 29. Ng3 $16 {[%emt 0:00:50] CPLX 3.1} Kg6 {[%emt 0:00:11] CPLX 3.4} 30. Nf1 {[%emt 0:01:35] CPLX 3.5 80 (f3-f4) (=12)} (30. f4 $16) 30... Kf6 {[%emt 0:00:09] CPLX 2.9 22 (Kg6-f7) (=11)} 31. Ng3 {[%emt 0:00:08] CPLX 3.3 22 (f3-f4) (=12)} Rh7 {[%emt 0:00:15] RELBLUND 56 (Kf6-g6) (=13)} (31... Kg6 $11) 32. e4 {[%emt 0:00:39] CPLX 3.2 16 (Rd1-f1) (=12)} f4 {[%emt 0:04:14] CPLX 3.7} 33. Ne2 {[%emt 0:00:14] Strongly threatening exd5. CPLX 4.5 17 (Ng3-f1) (=12)} dxe4 {[%emt 0:01:05] CPLX 3.7} 34. fxe4 {[%emt 0:00:01] RECAPT} Ng6 {[%emt 0:00:27] White stays focused until the end. CPLX 3.6 62 (Rh7-e7) (=14)} ({Black should try} 34... Re7 $14) 35. g3 {[%emt 0:01:42] CPLX 3.3 28 (e4-e5) (=12)} Re7 $2 {[%emt 0:01:05] RELBLUND 205 (f4xg3) (=20)} (35... fxg3+ $16 {was called for.} 36. Nxg3 (36. Kxg3 Rf7 $14) 36... Rf7) 36. e5+ $18 {[%emt 0:02:20] CPLX 3.8=>BLUNDERREACT} Kf5 {[%emt 0:00:05] CPLX 3.5 111 (Kf6-f7) (=23)} (36... Kf7 {might work better.} 37. gxf4 c5) 37. gxf4 {[%emt 0:00:14] DEEPSTRONG=>BLUNDERREACT} gxf4 {[%emt 0:00:06] [#] RECAPT 0 (Ng6xf4) (=22)} 38. Ndxf4 $1 {[%emt 0:00:12][%mdl 512] RECAPT} Nh4 $2 {[%emt 0:04:04] MISS-Ng6xf4 226 (Ng6xf4) (=28)} (38... Nxf4 39. Rf3 Kg6) (38... Rf8 39. Rf3) 39. Kg3 {[%emt 0:01:43] CPLX 4.9 249 (Rb3-g3) (=18)} Kg5 {[%emt 0:00:08] CPLX 5.8 91 (Nh4-g6) (=30)} 40. Kf2 $2 {[%emt 0:00:54] CPLX 4.8 400 (Rd1-g1) (=29)} (40. Rg1 $18) 40... b6 $2 {[%emt 0:04:36][%mdl 8192] MISSDEEP-Kg5-f5 400 (Kg5-f5) (=40)} (40... Kf5 $1 $11 {and Black is okay.} 41. Rg3 Rf8 42. Nxh5 Rh7) 41. Rg3+ {[%emt 0:01:09] CPLX 4.4 25 (Rd1-g1) (=29)} Kh6 {[%emt 0:00:17] CPLX 4.4} 42. Rdg1 {[%emt 0:00:11] [#] Black must now prevent Rg5. BESTDEEP} Nf5 {[%emt 0:01:38] EVAL 326 (Rb8-f8) (=47)} 43. Rg6+ {[%emt 0:00:18] EVAL} Kh7 {[%emt 0:00:01] EVAL} 44. R1g5 {[%emt 0:00:26] EVAL 51 (Nf4xh5) (=28)} Ng7 {[%emt 0:00:09] CPLX 4.7} 45. Rxc6 {[%emt 0:00:05] CPLX 4.0} Rf8 {[%emt 0:00:10] CPLX 4.0} 46. Ke1 {[%emt 0:00:37] CPLX 4.6} Rf5 {[%emt 0:02:12] BESTDEEP} 47. Rxf5 {[%emt 0:00:27] BESTDEEP} Nxf5 {[%emt 0:00:01] RECAPT} 48. Rc7 {[%emt 0:01:29] CPLX 2.3 84 (Nf4-d5) (=27)} Kh6 {[%emt 0:00:14] CPLX 2.6 56 (Nd7-f8) (=42)} 49. Nd5 {[%emt 0:00:52] CPLX 2.7} Rg7 {[%emt 0:00:51] CPLX 2.6 0 (Re7-h7) (=41)} 50. Ndf4 $2 {[%emt 0:01:57] CPLX 2.6 400 (Rc7-c8) (=35)} (50. Rc8 $18) 50... h4 $2 {[%emt 0:00:44][%mdl 8192] EVAL 400 (Rg7-e7) (=48)} (50... Re7 $11 51. Rc6+ Kg7 52. Rg6+ Kh7) 51. Rc6+ {[%emt 0:00:30] EVAL} Kh7 {[%emt 0:00:07] EASY} 52. Nh5 {[%emt 0:00:04]} Re7 {[%emt 0:01:08]} 53. Nf6+ {[%emt 0:00:11]} Kg7 {[%emt 0:00:02]} 54. Nd5 {[%emt 0:00:16][%csl LRb6,LRe7]} Rf7 {[%emt 0:00:36]} 55. e6 {[%emt 0:00:09]} Nf6 {[%emt 0:00:08]} 56. exf7 {[%emt 0:00:21]} Nxd5 {[%emt 0:00:01]} 57. Nc3 {[%emt 0:00:05]} Nxd4 {[%emt 0:00:10]} 58. Rc8 {[%emt 0:00:14]} ({Less strong is} 58. Nxd5 Nxc6 59. Nxb6 Kxf7 $16) 58... Nxc3 {[%emt 0:00:12]} 59. f8=Q+ {[%emt 0:00:13] Weighted Error Value: White=0.46/Black=0.41} 1-0

[Event "Chinese League Div-A Rapid 2022"]
[Site "Fuling,Chongqing"]
[Date "2022.09.19"]
[Round "11.6"]
[White "Ma, Zhonghan"]
[Black "Ma, Qun"]
[Result "1/2-1/2"]
[ECO "D12"]
[WhiteElo "2485"]
[BlackElo "2666"]
[Annotator "TA"]
[PlyCount "149"]
[EventDate "2022.09.07"]
[EventType "team-tourn"]
[EventCountry "CHN"]
[SourceTitle "playchess.com"]
[Source "ChessBase"]
[SourceQuality "1"]
[TimeControl "1500+10"]

{[%evp 18,149,0,12,3,-26,1,0,0,5,14,3,10,4,12,0,0,0,13,0,6,10,34,4,26,0,44,54,53,22,41,22,25,18,31,17,24,26,25,25,31,32,38,41,46,24,31,22,43,43,44,37,51,0,5,0,53,11,50,23,50,6,12,19,22,0,22,26,41,36,56,52,66,45,52,64,58,57,57,0,96,86,72,73,109,118,162,147,160,155,118,116,217,162,191,10,24,0,0,0,0,0,0,0,0,0,0,0,0,0,0,0,0,0,0,0,31,31,31,0,0,0,31,0,0,0,52,0,0,0,37,0,0,0]} 1. d4 {[%emt 0:00:02]} d5 {[%emt 0:00:02]} 2. c4 {[%emt 0:00:03]} c6 {[%emt 0:00:03]} 3. Nf3 {[%emt 0:00:03]} Nf6 {[%emt 0:00:02]} 4. e3 {[%emt 0:00:31]} Bf5 {[%emt 0:00:09]} 5. Nc3 {[%emt 0:00:03]} e6 {[%emt 0:00:03]} 6. Bd3 {[%emt 0:00:06]} Bxd3 {[%emt 0:00:41]} 7. Qxd3 {[%emt 0:00:03]} Bb4 {[%emt 0:00:03]} 8. O-O {[%emt 0:00:04]} Nbd7 {[%emt 0:01:29]} 9. Bd2 {[%emt 0:00:06]} a5 {[%emt 0:00:10]} 10. a3 {[%emt 0:00:36]} Be7 {[%emt 0:01:11] D12: Slav Defence: 3 Nf3 Nf6 4 e3 Bf5.} 11. e4 {[%emt 0:00:14]} dxe4 {[%emt 0:00:12]} (11... Nc5 $5 12. dxc5 dxe4 13. Qxd8+ Rxd8 $11) 12. Nxe4 {[%emt 0:00:02]} Nxe4 {[%emt 0:02:48]} 13. Qxe4 {[%emt 0:00:01]} a4 {[%emt 0:00:05] [#]} 14. Bc3 $146 {[%emt 0:00:49]} ({Predecessor:} 14. Rfd1 O-O 15. Bc3 Nf6 16. Qe2 Qc7 17. Rac1 Qf4 18. Bd2 Qe4 19. Qxe4 Nxe4 {0-1 (49) Cruz Lledo,P (2433)-Laurusas,T (2561) Viljandi 2022}) 14... O-O {[%emt 0:04:26]} 15. Rad1 {[%emt 0:00:10]} Re8 {[%emt 0:02:14]} 16. Rfe1 {[%emt 0:00:16]} Nf6 {[%emt 0:00:34]} 17. Qe2 {[%emt 0:00:53]} Qc7 {[%emt 0:00:25]} 18. Ne5 {[%emt 0:00:14][%cal Bf3e5,Be5g4,Bg4e3][%mdl 32]} Nd7 {[%emt 0:04:04]} 19. Ng4 {[%emt 0:06:13]} (19. Nxf7 Kxf7 20. Qxe6+ Kf8 $15) 19... h5 {[%emt 0:00:14]} 20. Ne3 {[%emt 0:04:27]} g6 {[%emt 0:00:08]} 21. d5 {[%emt 0:01:53]} exd5 {[%emt 0:00:02]} 22. cxd5 {[%emt 0:01:30][%cal Oe3f5]} Bf6 {[%emt 0:00:02]} 23. Qc4 {[%emt 0:01:40]} (23. Qd2 $5 {[%cal Rd5c6]} Bxc3 24. Qxc3 $14) 23... Nb6 {[%emt 0:05:49]} 24. Qb4 {[%emt 0:00:02]} Bxc3 {[%emt 0:00:43]} 25. Qxc3 {[%emt 0:00:01]} Rad8 {[%emt 0:02:15]} (25... Qd7 {keeps more tension.} 26. dxc6 Qxc6 27. Qxc6 bxc6 28. Rc1 Re6) 26. dxc6 {[%emt 0:03:12]} Rxd1 {[%emt 0:00:27]} (26... Qxc6 {seems wilder.} 27. Qxc6 bxc6 28. Kf1 Kf8) 27. Rxd1 {[%emt 0:00:03]} Qxc6 {[%emt 0:00:03]} 28. Qxc6 {[%emt 0:00:13]} bxc6 $14 {[%emt 0:00:02][%mdl 4096] Endgame KRN-KRN} 29. Kf1 {[%emt 0:00:27]} Re5 {[%emt 0:00:01]} 30. Rc1 {[%emt 0:02:24]} Rb5 {[%emt 0:00:04]} 31. Rc2 {[%emt 0:00:10]} (31. Nd1 $5 {[%cal Rc1c6]}) 31... Kf8 {[%emt 0:00:11]} 32. Nd1 {[%emt 0:00:06]} c5 {[%emt 0:01:11]} 33. Nc3 {[%emt 0:00:04]} Ra5 {[%emt 0:00:21]} 34. Ne4 {[%emt 0:00:16]} c4 {[%emt 0:00:01]} 35. Re2 {[%emt 0:00:43]} (35. Nc3 $14) 35... Nd5 $11 {[%emt 0:00:09]} 36. Rc2 {[%emt 0:00:40]} (36. g3 $11) 36... Nb6 $1 $14 {[%emt 0:00:02]} 37. Ke1 {[%emt 0:00:19]} Ke7 {[%emt 0:00:02]} 38. Re2 {[%emt 0:00:09]} Kd7 {[%emt 0:00:12]} 39. Kd1 {[%emt 0:00:15]} Kc6 {[%emt 0:00:26]} 40. Nc3 {[%emt 0:00:26]} Rf5 {[%emt 0:00:08]} 41. h4 {[%emt 0:00:43]} Rf4 {[%emt 0:00:22]} 42. g3 {[%emt 0:00:02]} Rf3 {[%emt 0:00:02]} 43. Ke1 {[%emt 0:00:27]} Rf5 {[%emt 0:00:19]} 44. Re4 {[%emt 0:00:05]} Rf6 {[%emt 0:00:17]} 45. Ke2 {[%emt 0:00:06]} Rf5 {[%emt 0:00:03]} 46. f3 {[%emt 0:00:13]} Rf6 {[%emt 0:00:04]} 47. Re5 {[%emt 0:00:09]} Rd6 {[%emt 0:00:03]} 48. Re7 {[%emt 0:00:28]} (48. Ra5 $14) 48... Rf6 {[%emt 0:00:08]} (48... Nd5 $1 $11 49. Rxf7 Nxc3+ 50. bxc3 Rd3) 49. Ra7 $16 {[%emt 0:00:30] White is more active.} Re6+ {[%emt 0:00:11]} 50. Kf2 {[%emt 0:00:19]} Rd6 {[%emt 0:00:01]} 51. Rxf7 {[%emt 0:00:36]} Rd2+ {[%emt 0:00:02]} 52. Ke3 {[%emt 0:00:01]} Rxb2 {[%emt 0:00:20]} 53. Rf6+ {[%emt 0:00:01]} Kb7 {[%emt 0:00:26]} 54. Rxg6 {[%emt 0:00:17]} Rc2 {[%emt 0:00:23]} (54... Rb3 $16 55. Kd4 Rxa3) 55. Ne4 {[%emt 0:00:34]} Ra2 {[%emt 0:00:02]} 56. Nc5+ $2 {[%emt 0:00:08]} ({White should try} 56. Kd4 $18) 56... Kc7 $11 {[%emt 0:00:13]} 57. Kd4 {[%emt 0:00:14]} Rxa3 {[%emt 0:00:07]} 58. Na6+ {[%emt 0:00:10]} Kb7 {[%emt 0:00:03]} 59. Nc5+ {[%emt 0:00:04]} Kc7 {[%emt 0:00:01]} 60. Rf6 {[%emt 0:00:08]} c3 {[%emt 0:00:22]} 61. Na6+ {[%emt 0:00:07]} Kb7 {[%emt 0:00:01]} 62. Nc5+ {[%emt 0:00:19]} Kc7 {[%emt 0:00:01]} 63. Na6+ {[%emt 0:00:06]} Kb7 {[%emt 0:00:01]} 64. Nc5+ {[%emt 0:00:13]} Kc7 {[%emt 0:00:37] [#] White must now prevent ...c2.} 65. Na6+ {[%emt 0:00:01]} Kb7 {[%emt 0:00:01]} 66. Nc5+ {[%emt 0:00:01]} Ka7 {[%emt 0:00:06] And now ...c2 would win.} (66... Kc7 $5 {[%cal Rc3c2]} 67. Na6+ $11) 67. Rf7+ {[%emt 0:00:05]} Ka8 {[%emt 0:00:02] Threatens to win with ...c2.} 68. Rf8+ {[%emt 0:00:10]} Ka7 {[%emt 0:00:02] [#] aiming for ...c2.} 69. Rf7+ {[%emt 0:00:02]} Ka8 {[%emt 0:00:42]} 70. Rf8+ {[%emt 0:00:01]} Ka7 {[%emt 0:00:01]} 71. Rf7+ {[%emt 0:00:01]} Ka8 {[%emt 0:00:24]} 72. Rf8+ {[%emt 0:00:01]} ({Much worse is} 72. Kd3 Nd5 73. Na6 c2+ 74. Kxc2 Rc3+ 75. Kb2 Rb3+ 76. Kc2 Ne3+ 77. Kd2 Nf1+ 78. Kc2 Ne3+ 79. Kd2 Nf1+ 80. Kc2 Ne3+ $11) 72... Ka7 {[%emt 0:00:01]} 73. Rf7+ {[%emt 0:00:02]} Ka8 {[%emt 0:00:01]} 74. Rf8+ {[%emt 0:00:02]} Ka7 {[%emt 0:00:01] ...c2 is the strong threat.} 75. Rf7+ {[%emt 0:00:02] Blacks defense is rewarded with a draw.  Weighted Error Value: White=0.19 (very precise) /Black=0.15 (very precise)} 1/2-1/2